bitfinex/quotes_ETHUSD_20220113
["timestamp","ask_amount","ask_price","bid_price","bid_amount"]
[1642117165299,0.60454738,3261.4,3260.6,8.4803212]
[1642117167103,0.60454738,3261.4,3260.7,2.63523012]
[1642117167403,0.60454738,3261.4,3260.8,3.22171149]
[1642117168002,0.60454738,3261.4,3260.8,3.98834149]
[1642117168851,0.60454738,3261.4,3260.9,2.63523012]
[1642117170956,0.30454738,3261.4,3261.1,0.76657]
[1642117171155,0.30454738,3261.4,3261.2,3.56797025]
[1642117171354,0.00454738,3261.4,3261.2,3.56797025]
[1642117171754,0.00454738,3261.4,3261.2,4.79103586]
[1642117171955,0.00454738,3261.4,3261.2,4.74914363]
[1642117172158,0.00454738,3261.4,3261.3,3.52607802]
[1642117172408,0.00454738,3261.4,3261.3,0.1226]
[1642117172800,0.00454738,3261.4,3261.3,2.75783012]
[1642117174201,0.00454738,3261.4,3261.3,6.39701553]
[1642117174902,0.00454738,3261.4,3261.3,7.52701553]
[1642117176356,0.00454738,3261.4,3261.3,9.07927829]
[1642117177153,0.00454738,3261.4,3261.3,7.52701553]
[1642117179355,0.00454738,3261.4,3261.3,7.96701553]
[1642117183008,0.00454738,3261.4,3261.3,8.96701553]
[1642117183409,0.027278,3262.2,3261.4,0.04903013]
[1642117183654,2.35421384,3262.7,3261.8,1.36434707]
[1642117183855,2.35421384,3262.7,3262.6,1.10079275]
[1642117184054,0.87808123,3263.2,3262.6,1.10079275]
[1642117184055,2.35421384,3262.8,3262.6,1.10079275]
[1642117184255,0.00738951,3262.7,3262.6,1.10079275]
[1642117184856,0.00738951,3262.7,3262.5,0.1983]
[1642117185055,0.00738951,3262.7,3262.3,1.0]
[1642117185259,0.00682108,3262.6,3262.5,1.53231]
[1642117186456,0.00682108,3262.6,3262.5,2.53231]
[1642117189009,0.00682108,3262.6,3262.5,1.0]
[1642117189409,0.00682108,3262.6,3262.4,1.5324]
[1642117189809,0.00625266,3262.5,3262.4,1.5324]
[1642117193957,0.00625266,3262.5,3262.4,1.655]
[1642117194556,0.00625266,3262.5,3262.4,2.80489636]
[1642117195010,0.00625266,3262.5,3262.4,3.80489636]
[1642117199167,0.00625266,3262.5,3262.4,5.35332334]
[1642117199968,0.00625266,3262.5,3262.4,3.80489636]
[1642117201167,0.00625266,3262.5,3262.4,6.43824013]
[1642117202171,0.00625266,3262.5,3262.4,2.63334377]
[1642117203411,0.30625266,3262.5,3262.4,2.63334377]
[1642117203809,0.00625266,3262.5,3262.4,2.63334377]
[1642117204009,0.00625266,3262.5,3262.3,2.63334377]
[1642117204410,0.00568424,3262.4,3262.3,2.63334377]
[1642117205009,0.00568424,3262.4,3262.3,4.18112822]
[1642117205210,0.00568424,3262.4,3262.3,5.18112822]
[1642117206268,0.00568424,3262.4,3262.3,3.63334377]
[1642117207163,0.00568424,3262.4,3262.3,5.18112822]
[1642117207765,0.00568424,3262.4,3262.3,3.63334377]
[1642117208677,0.00568424,3262.4,3262.3,5.18112822]
[1642117209283,2.35421384,3263.7,3262.3,9.48808699]
[1642117209476,4.03923284,3263.8,3263.6,0.01291858]
[1642117209669,3.90121525,3264.3,3263.7,0.5625]
[1642117209923,3.90121525,3264.3,3264.1,0.038392]
[1642117210118,3.90121525,3264.3,3264.2,0.1225]
[1642117210318,3.90121525,3264.3,3264.2,1.22015766]
[1642117210520,3.5519117,3264.3,3264.2,1.22015766]
[1642117211322,3.5519117,3264.3,3264.2,1.98591766]
[1642117211719,0.01080004,3264.3,3264.2,1.88826]
[1642117211919,0.01080004,3264.3,3264.2,1.1225]
[1642117212119,0.01080004,3264.3,3264.2,0.1225]
[1642117213119,0.01080004,3264.3,3264.2,2.75584377]
[1642117213519,0.01080004,3264.3,3264.2,3.75584377]
[1642117213756,0.01080004,3264.3,3264.2,2.63334377]
[1642117214357,0.31080004,3264.3,3264.2,2.63334377]
[1642117214556,0.61080004,3264.3,3264.2,2.63334377]
[1642117214958,0.31080004,3264.3,3264.2,2.63334377]
[1642117215158,0.31080004,3264.3,3263.7,0.027278]
[1642117215358,0.76605,3264.1,3263.7,0.027278]
[1642117215563,1.36605,3264.1,3263.7,0.027278]
[1642117215759,0.00909477,3264.0,3263.7,0.027278]
[1642117216158,0.00852635,3263.9,3263.7,0.027278]
[1642117216360,0.00852635,3263.9,3263.8,2.63334377]
[1642117216560,1.06605,3264.1,3263.8,2.63334377]
[1642117216561,1.36605,3264.1,3263.8,2.63334377]
[1642117216758,1.06605,3264.1,3263.8,2.63334377]
[1642117216959,0.00909477,3264.0,3263.8,2.63334377]
[1642117217413,0.00852635,3263.9,3263.8,2.63334377]
[1642117218205,0.00852635,3263.9,3263.6,2.63334377]
[1642117218607,0.00795793,3263.8,3263.7,1.0]
[1642117219607,0.00795793,3263.8,3263.6,1.027278]
[1642117219807,0.00795793,3263.8,3263.5,2.75584377]
[1642117219808,0.00795793,3263.8,3263.5,3.63334377]
[1642117220007,0.0073895,3263.7,3263.6,1.0]
[1642117220706,0.0073895,3263.7,3263.4,2.34112245]
[1642117221164,0.00682108,3263.6,3263.4,2.34112245]
[1642117221562,0.00625266,3263.5,3263.4,2.34112245]
[1642117221962,0.0073895,3263.5,3263.4,2.34112245]
[1642117222764,0.0073895,3263.5,3263.4,0.793338]
[1642117223065,3.47432828,3264.9,3263.4,0.92842207]
[1642117223264,3.47432828,3264.9,3263.4,0.80875734]
[1642117223463,0.00625266,3264.8,3263.4,0.03011327]
[1642117223663,0.00625266,3264.8,3263.7,0.033897]
[1642117223865,0.44,3265.3,3263.7,0.033897]
[1642117223866,0.00568424,3264.7,3263.7,1.29332252]
[1642117224064,0.76612,3264.2,3263.7,0.033897]
[1642117224463,0.0022737,3264.1,3263.7,0.033897]
[1642117224914,0.00170527,3264.0,3263.7,0.033897]
[1642117225307,0.00113685,3263.9,3263.7,0.033897]
[1642117225707,2.13224,3264.3,3263.7,0.033897]
[1642117225708,0.00284212,3264.2,3263.7,0.033897]
[1642117226107,0.76614,3264.0,3263.7,0.033897]
[1642117226307,1.36614,3264.0,3263.7,0.033897]
[1642117226507,0.00113685,3263.9,3263.7,0.033897]
[1642117226708,0.00113685,3263.9,3263.4,1.57357732]
[1642117227210,0.00113685,3263.9,3263.5,1.54346405]
[1642117228209,0.00113685,3263.9,3263.4,1.57357732]
[1642117228964,1.06616,3263.8,3263.4,1.54516932]
[1642117229162,0.3,3263.7,3263.4,1.54516932]
[1642117230164,0.3,3263.7,3263.4,0.00170527]
[1642117230567,0.3,3263.8,3263.4,0.00170527]
[1642117230968,0.30113685,3263.9,3263.4,0.00170527]
[1642117231866,0.30113685,3263.9,3263.4,1.54516932]
[1642117232509,0.30113685,3263.9,3263.5,0.00113684]
[1642117232708,0.30113685,3263.9,3263.5,1.54460089]
[1642117233311,0.30113685,3263.9,3263.6,3.47432828]
[1642117233508,0.30113685,3263.9,3263.5,1.54460089]
[1642117233808,0.30113685,3263.9,3263.5,0.00113684]
[1642117234209,0.76616,3263.8,3263.5,0.00113684]
[1642117234409,0.3,3263.7,3263.3,0.00227369]
[1642117235009,1.2565,3263.7,3263.4,1.54346405]
[1642117235409,1.13885049,3263.5,3263.4,1.54346405]
[1642117235609,2.2565,3263.7,3263.4,1.54346405]
[1642117235808,2.2565,3263.7,3263.4,1.54516932]
[1642117236263,3.02274,3263.7,3263.4,1.54516932]
[1642117236462,1.80684,3263.7,3263.4,0.00170527]
[1642117236861,1.80684,3263.7,3263.2,0.00284211]
[1642117237066,2.80684,3263.7,3263.2,0.00284211]
[1642117238065,1.37826151,3263.4,3263.1,0.00341054]
[1642117238267,0.76634,3263.3,3263.1,0.00341054]
[1642117238664,1.06634,3263.3,3263.1,0.00341054]
[1642117239067,1.06634,3263.3,3263.0,3.47830724]
[1642117239269,2.29903,3264.0,3263.0,3.47830724]
[1642117239270,2.21562787,3264.4,3263.2,1.43051669]
[1642117239466,0.76614,3264.0,3263.3,0.152845]
[1642117239668,0.30113685,3263.9,3263.2,0.1225]
[1642117239929,0.00113685,3263.9,3263.3,0.00227369]
[1642117240313,0.00113685,3263.9,3263.2,0.00284211]
[1642117240713,0.00113685,3263.9,3263.3,2.63336975]
[1642117240714,1.2330963,3263.9,3263.3,2.63336975]
[1642117240917,0.00113685,3263.9,3263.3,2.63336975]
[1642117241214,1.53246,3263.8,3263.3,2.63336975]
[1642117241415,0.3,3263.7,3263.3,2.63336975]
[1642117241816,0.3,3263.7,3263.2,2.63621186]
[1642117242016,1.3663,3263.8,3263.2,2.63621186]
[1642117242316,1.53257,3263.5,3263.3,0.00227369]
[1642117242520,2.13257,3263.5,3263.3,0.00227369]
[1642117242716,1.27710158,3263.4,3263.3,0.00227369]
[1642117243659,1.27710158,3263.4,3262.9,2.63336975]
[1642117243660,1.71710158,3263.4,3262.9,2.63336975]
[1642117243860,0.76654,3263.2,3262.9,2.63336975]
[1642117244060,1.58126852,3263.0,3262.9,2.63336975]
[1642117244259,1.93946852,3263.0,3262.9,2.63336975]
[1642117244460,2.23946852,3263.0,3262.9,2.63564345]
[1642117245263,0.6,3263.0,3262.9,0.0022737]
[1642117245460,0.3,3263.0,3262.9,0.0022737]
[1642117245662,1.36653,3263.1,3262.8,0.00284212]
[1642117246060,1.53293,3263.0,3262.8,0.00284212]
[1642117246460,0.3,3262.9,3262.8,0.00284212]
[1642117246660,0.6,3262.9,3262.5,0.00454739]
[1642117247262,0.6,3262.9,3262.5,1.54801144]
[1642117247263,1.90333523,3262.9,3262.5,1.54801144]
[1642117247715,1.90333523,3262.9,3262.6,0.00397897]
[1642117248110,0.7665,3262.7,3262.6,0.00397897]
[1642117248512,1.3665,3262.7,3262.6,0.00397897]
[1642117249211,1.3665,3262.7,3262.5,0.00454739]
[1642117249414,0.3,3262.6,3262.5,0.00454739]
[1642117253367,0.3,3262.6,3262.5,1.54801144]
[1642117256627,0.7665,3262.7,3262.5,1.54801144]
[1642117257127,0.7665,3262.7,3262.6,0.00397897]
[1642117257527,0.7665,3262.7,3262.5,1.54346405]
[1642117257728,1.0665,3262.7,3262.5,1.54346405]
[1642117257932,1.0665,3262.7,3262.4,1.54346405]
[1642117257933,0.3,3262.6,3262.4,1.54346405]
[1642117258530,1.833,3262.6,3262.4,0.14885107]
[1642117258763,4.22960005,3262.5,3262.4,0.14885107]
[1642117258962,4.52960005,3262.5,3262.3,0.1226]
[1642117259162,5.29633095,3262.5,3262.0,2.31519608]
[1642117259362,1.3190577,3262.3,3262.0,2.31519608]
[1642117259562,0.76675,3262.2,3262.1,0.00170527]
[1642117259762,0.3,3262.2,3262.1,0.00170527]
[1642117260764,1.14580796,3262.1,3261.3,2.24417935]
[1642117260965,0.7667,3261.8,3261.3,2.24417935]
[1642117261175,1.0667,3261.8,3261.4,0.00397897]
[1642117261466,0.3,3261.7,3261.4,0.00397897]
[1642117261964,0.3,3261.7,3261.3,0.00454739]
[1642117262409,0.76667,3261.6,3261.3,0.00454739]
[1642117262609,0.6,3261.5,3261.3,0.00454739]
[1642117263412,0.1226,3262.2,3261.3,0.00454739]
[1642117263613,0.3,3261.4,3261.3,0.00454739]
[1642117263813,0.7666,3261.9,3261.2,0.00511581]
[1642117264015,0.7666,3261.9,3261.4,2.63420825]
[1642117264213,1.0666,3261.9,3261.4,2.63420825]
[1642117264413,1.0666,3261.9,3261.5,0.00341054]
[1642117264414,0.3,3261.8,3261.5,0.00341054]
[1642117264613,0.6,3261.9,3261.5,0.00341054]
[1642117265213,0.6,3261.9,3261.2,5.63687448]
[1642117265619,0.00170527,3261.8,3261.3,0.00113685]
[1642117265820,0.00170527,3261.8,3261.5,2.63420825]
[1642117266016,0.00113684,3261.7,3261.5,2.63420825]
[1642117266266,0.76778684,3261.7,3261.5,2.63420825]
[1642117266462,0.3,3261.6,3261.4,2.63420825]
[1642117266862,0.30113684,3261.7,3261.4,2.63420825]
[1642117267266,0.30113684,3261.7,3261.3,0.00113685]
[1642117267668,1.06778684,3261.7,3261.3,0.00113685]
[1642117268062,0.3,3261.6,3261.3,0.00113685]
[1642117269464,0.3,3261.6,3261.4,2.3248605]
[1642117270512,0.5305,3261.6,3261.4,2.3248605]
[1642117271711,2.06258344,3261.6,3261.4,2.3248605]
[1642117271912,2.18518344,3261.6,3261.4,2.3248605]
[1642117272313,2.18518344,3261.6,3261.3,0.00113685]
[1642117272314,2.1868454,3261.6,3261.3,0.00113685]
[1642117272613,0.3,3261.4,3261.2,0.00170527]
[1642117273878,0.76682,3261.2,3261.0,0.00284212]
[1642117274078,0.3,3261.1,3261.0,0.00284212]
[1642117275478,0.76683,3261.0,3260.8,0.00397897]
[1642117275877,0.3,3260.9,3260.7,0.00454739]
[1642117276282,0.3,3260.9,3260.5,0.00568424]
[1642117276481,0.76685,3260.8,3260.5,0.00568424]
[1642117276681,0.76685,3260.8,3260.3,0.00682109]
[1642117276880,0.6,3260.7,3260.3,0.00682109]
[1642117277279,0.1226,3260.6,3260.3,0.00682109]
[1642117277816,0.88959,3260.6,3260.3,0.00682109]
[1642117279117,0.3,3260.5,3260.3,0.00682109]
[1642117279318,0.3,3260.4,3260.3,0.00682109]
[1642117280920,0.3,3260.4,3259.9,0.00909478]
[1642117281179,0.7671,3260.2,3259.9,0.00909478]
[1642117281377,0.7671,3260.2,3259.6,0.01080005]
[1642117281580,0.3,3260.1,3259.6,0.01080005]
[1642117281778,0.3,3260.1,3259.7,0.01023163]
[1642117281978,0.3,3260.1,3259.9,1.52378948]
[1642117282378,0.3,3260.1,3260.0,0.00852636]
[1642117283178,0.3,3260.1,3259.8,0.0096632]
[1642117283779,0.3,3260.1,3259.8,1.19002541]
[1642117284181,0.3,3260.1,3259.9,0.00909478]
[1642117285316,0.3,3260.1,3259.6,0.01080005]
[1642117286518,0.3,3260.3,3260.1,1.34756546]
[1642117286722,0.3,3260.3,3260.1,2.55821032]
[1642117286919,0.3,3260.3,3260.2,0.00738951]
[1642117287320,0.76695,3260.4,3260.2,0.00738951]
[1642117288019,0.76695,3260.4,3260.2,2.6426943]
[1642117288319,0.76695,3260.4,3260.3,0.00682109]
[1642117288519,1.06695,3260.4,3260.3,0.00682109]
[1642117288965,1.06695,3260.4,3260.3,2.64212588]
[1642117289367,1.18955,3260.4,3260.3,2.64212588]
[1642117289564,1.62955,3260.4,3260.3,2.64212588]
[1642117290364,1.62955,3260.4,3260.2,1.55625519]
[1642117290564,0.1226,3260.3,3260.2,1.55625519]
[1642117290964,0.1226,3260.3,3259.9,1.55625519]
[1642117290965,3.74116307,3260.3,3259.9,1.55625519]
[1642117291167,0.76721,3260.2,3259.9,1.55625519]
[1642117291367,4.2605287,3260.1,3260.0,0.00170527]
[1642117291568,5.7870287,3260.1,3260.0,0.00170527]
[1642117291868,2.0891,3260.1,3260.0,0.00170527]
[1642117292717,1.5344,3260.0,3259.8,0.00284211]
[1642117292915,0.1227,3259.9,3259.8,0.00284211]
[1642117293917,0.1227,3259.9,3259.6,0.00397896]
[1642117295118,0.88981,3259.9,3259.6,0.00397896]
[1642117295717,0.88981,3259.9,3259.6,1.56023415]
[1642117296167,0.76711,3259.9,3259.7,0.00341054]
[1642117297369,0.1227,3259.8,3259.7,0.00341054]
[1642117297969,0.1227,3259.8,3259.5,1.55625519]
[1642117297970,0.1227,3259.8,3259.6,0.00397896]
[1642117298168,0.76711,3259.9,3259.6,0.00397896]
[1642117298769,0.76711,3259.9,3259.5,0.00454738]
[1642117299370,0.76711,3259.9,3259.6,1.55625519]
[1642117299776,0.76722,3259.8,3259.7,0.00341054]
[1642117300017,0.76711,3259.9,3259.7,0.00341054]
[1642117302819,0.76711,3259.9,3259.6,0.00397896]
[1642117303218,0.76711,3259.9,3259.5,0.00454738]
[1642117304366,0.76711,3259.9,3259.4,0.00511581]
[1642117305668,0.88981,3259.9,3259.4,0.00511581]
[1642117306470,1.5345,3259.8,3259.4,0.00511581]
[1642117306669,1.8345,3259.8,3259.4,0.00511581]
[1642117306870,0.76724,3259.6,3259.4,0.00511581]
[1642117307071,1.06724,3259.6,3259.4,0.00511581]
[1642117307272,1.06724,3259.6,3259.3,0.00568423]
[1642117315216,2.79487982,3259.6,3259.3,0.00568423]
[1642117315815,0.1227,3259.5,3259.3,0.00568423]
[1642117316016,0.76737,3259.4,3259.1,0.00682108]
[1642117316216,1.18154841,3259.3,3259.1,0.00682108]
[1642117316417,2.24890031,3259.3,3259.1,0.00682108]
[1642117316618,3.05395634,3259.3,3258.8,0.00852635]
[1642117316816,3.05395634,3259.3,3258.7,0.00909477]
[1642117317516,0.7673554,3259.1,3258.7,0.00909477]
[1642117317716,0.80528379,3259.1,3258.7,0.00909477]
[1642117317920,0.3,3259.0,3258.7,0.00909477]
[1642117318316,0.3,3259.0,3258.6,0.00966319]
[1642117318768,2.602098,3259.2,3258.6,0.00966319]
[1642117318968,2.6394645,3259.2,3258.6,0.00966319]
[1642117319867,0.76733,3258.8,3258.6,0.00966319]
[1642117320068,1.06733,3258.8,3258.6,0.00966319]
[1642117320969,1.06733,3258.8,3258.7,5.74369574]
[1642117321368,1.06733,3258.8,3258.7,5.75279051]
[1642117321768,1.06733,3258.8,3258.7,0.00909477]
[1642117321969,1.5721265,3259.2,3258.7,0.00909477]
[1642117322170,1.57338208,3259.2,3258.7,0.00909477]
[1642117322619,1.57338208,3259.2,3258.7,2.64567317]
[1642117323023,1.57338208,3259.2,3258.8,0.00852635]
[1642117323220,0.80184488,3259.1,3258.8,0.00852635]
[1642117323421,0.80184488,3259.1,3259.0,2.3557207]
[1642117323823,0.80184488,3259.1,3259.0,2.3631102]
[1642117324021,0.76727,3259.1,3259.0,2.3631102]
[1642117324221,0.76727,3259.1,3259.0,1.57715952]
[1642117325226,0.76727,3259.1,3259.0,2.6439679]
[1642117327673,0.76727,3259.1,3259.0,4.21373792]
[1642117328573,0.76727,3259.1,3259.0,2.6439679]
[1642117328773,0.88997,3259.1,3259.0,2.6439679]
[1642117330227,0.88997,3259.1,3259.0,4.21373792]
[1642117331224,0.76727,3259.1,3259.0,4.21373792]
[1642117331624,2.33891119,3259.2,3259.0,4.21373792]
[1642117331826,2.46161119,3259.2,3259.0,4.21373792]
[1642117332025,2.46161119,3259.2,3259.1,0.00682108]
[1642117332526,2.46161119,3259.2,3259.0,1.1810779]
[1642117332527,2.76161119,3259.2,3259.0,1.1810779]
[1642117332726,2.76161119,3259.2,3258.8,2.3557207]
[1642117332727,1.242141,3259.1,3258.8,2.3557207]
[1642117332925,1.6577977,3259.0,3258.8,2.3557207]
[1642117333126,0.44,3258.9,3258.8,2.3557207]
[1642117333328,0.5627,3258.9,3258.8,2.3557207]
[1642117333679,0.76755,3258.8,3258.3,0.1227]
[1642117333877,0.76755,3258.8,3258.0,3.87406961]
[1642117333878,0.80386598,3258.5,3258.0,3.87406961]
[1642117334077,0.80033182,3258.3,3258.0,3.87406961]
[1642117334278,0.5627,3258.2,3258.1,3.1535587]
[1642117334477,0.608163,3258.2,3258.1,3.1535587]
[1642117334877,1.375843,3258.2,3258.1,3.1535587]
[1642117335080,2.50128595,3258.2,3258.1,3.1535587]
[1642117335678,2.50128595,3258.2,3257.8,3.95503461]
[1642117335881,1.73360595,3258.2,3257.8,3.95503461]
[1642117336079,1.73360595,3258.2,3257.9,0.00682108]
[1642117336478,1.73360595,3258.2,3257.7,0.00795793]
[1642117336681,1.5353761,3258.0,3257.6,0.00852635]
[1642117336880,1.57371108,3258.0,3257.6,0.00852635]
[1642117337080,0.3,3257.9,3257.6,0.00852635]
[1642117337519,0.3,3257.9,3257.4,0.0096632]
[1642117337720,0.76769,3257.8,3257.4,0.0096632]
[1642117337922,0.80570078,3257.8,3257.4,0.0096632]
[1642117338319,0.80570078,3257.8,3257.3,0.01023162]
[1642117338720,0.80570078,3257.8,3257.4,0.0096632]
[1642117338922,0.80570078,3257.8,3257.3,0.01023162]
[1642117341779,0.76755,3258.2,3257.4,0.1227]
[1642117341985,0.3,3258.2,3257.8,0.07438052]
[1642117342179,0.027278,3258.7,3257.8,0.1227]
[1642117342379,0.027278,3258.7,3257.7,1.5825169]
[1642117342780,1.19878511,3258.3,3257.8,0.0073895]
[1642117342979,1.49878511,3258.3,3257.8,0.0073895]
[1642117343189,0.76755,3258.2,3257.8,1.5899064]
[1642117344383,0.76755,3258.2,3257.9,1.5825169]
[1642117344781,0.76755,3258.2,3258.0,0.00625265]
[1642117345230,0.76761,3258.1,3258.0,0.00625265]
[1642117346030,1.8351536,3258.2,3258.0,0.00625265]
[1642117346929,1.06755,3258.2,3258.0,0.00625265]
[1642117350579,1.06755,3258.2,3257.8,0.0073895]
[1642117350980,1.83516,3258.2,3257.8,0.0073895]
[1642117351883,1.95786,3258.2,3257.8,0.0073895]
[1642117352079,1.98927064,3258.2,3257.7,0.00795793]
[1642117352930,1.98927064,3258.2,3257.8,2.63758977]
[1642117353827,1.98927064,3258.2,3257.8,4.22010667]
[1642117354327,1.86657064,3258.2,3257.8,4.22010667]
[1642117354630,1.86657064,3258.2,3257.7,4.2280646]
[1642117355226,1.86657064,3258.2,3257.8,0.0073895]
[1642117355227,0.028876,3258.1,3257.8,0.0073895]
[1642117355428,0.4227,3258.0,3257.9,2.63758977]
[1642117355727,0.151576,3258.1,3257.9,2.63758977]
[1642117356174,0.151576,3258.1,3258.0,0.00625265]
[1642117356574,0.1227,3258.1,3258.0,0.00625265]
[1642117356776,0.80011194,3258.5,3258.0,3.05006963]
[1642117356975,0.80011194,3258.5,3258.0,0.00625265]
[1642117357177,0.80011194,3258.5,3258.2,1.5]
[1642117357574,0.80011194,3258.5,3258.3,0.00454738]
[1642117357976,1.40011194,3258.5,3258.3,0.00454738]
[1642117358879,1.52281194,3258.5,3258.3,0.00454738]
[1642117359278,1.52281194,3258.5,3258.4,2.63758977]
[1642117359682,1.52281194,3258.5,3258.4,2.64156873]
[1642117359941,1.40011194,3258.5,3258.4,2.64156873]
[1642117361333,0.63264194,3258.5,3258.4,2.64156873]
[1642117370229,0.6,3258.5,3258.4,2.64156873]
[1642117370430,0.59720056,3258.5,3258.4,2.64156873]
[1642117377527,0.59720056,3258.5,3258.4,2.56489573]
[1642117379274,0.62578056,3258.5,3258.4,2.56489573]
[1642117389678,0.62578056,3258.5,3258.4,2.56091677]
[1642117391525,0.62578056,3258.5,3258.2,1.5]
[1642117391726,0.76753,3258.4,3258.2,1.5]
[1642117391926,0.76753,3258.4,3258.3,0.00454738]
[1642117392627,0.76753,3258.4,3257.8,0.0073895]
[1642117392828,0.029519,3258.3,3257.8,0.0073895]
[1642117395086,0.1227,3258.6,3257.8,3.05490057]
[1642117395283,0.794588,3259.2,3258.5,0.01241835]
[1642117395484,0.76731,3259.4,3258.6,0.1227]
[1642117395485,0.03156,3259.4,3258.6,0.1227]
[1642117395685,0.03156,3259.4,3258.6,1.62554211]
[1642117395888,0.03156,3259.4,3258.7,0.00227369]
[1642117396083,2.57714881,3259.3,3258.7,0.00227369]
[1642117396284,0.76747,3259.0,3258.7,0.00227369]
[1642117396484,1.06747,3259.0,3258.7,0.00227369]
[1642117396683,0.79546,3259.0,3258.7,0.00227369]
[1642117397429,1.56295,3259.0,3258.7,0.00227369]
[1642117397627,0.034343,3258.8,3258.7,0.00227369]
[1642117398224,0.474343,3258.8,3258.7,0.00227369]
[1642117398427,0.774343,3258.8,3258.7,0.00227369]
[1642117398626,1.36770797,3258.7,3258.1,1.5825169]
[1642117398825,0.801593,3258.4,3258.1,1.5825169]
[1642117399026,1.91185726,3258.3,3258.2,0.00284212]
[1642117399226,2.21185726,3258.3,3258.2,0.00284212]
[1642117399625,2.21185726,3258.3,3258.0,0.00397896]
[1642117399827,2.21185726,3258.3,3257.9,0.00454739]
[1642117400127,0.76766,3258.2,3257.9,0.00454739]
[1642117400326,0.795209,3258.2,3257.9,0.00454739]
[1642117400527,0.3,3258.1,3257.9,0.00454739]
[1642117400932,0.3,3258.1,3257.8,0.00511581]
[1642117401474,0.3,3258.1,3257.7,0.00568424]
[1642117401674,0.3,3258.1,3257.7,1.58820114]
[1642117402077,0.3,3258.1,3257.8,0.00511581]
[1642117402475,0.327549,3258.2,3257.8,0.00511581]
[1642117402775,0.027549,3258.2,3257.8,0.00511581]
[1642117402975,1.74420726,3258.3,3257.8,0.00511581]
[1642117403777,1.74420726,3258.3,3257.7,0.00568424]
[1642117403977,1.74420726,3258.3,3257.8,0.1227]
[1642117404177,1.74420726,3258.3,3257.7,0.12838424]
[1642117404381,1.74420726,3258.3,3257.9,0.00454739]
[1642117404579,1.74420726,3258.3,3257.8,0.00511581]
[1642117404779,0.796797,3258.2,3257.8,0.00511581]
[1642117405028,0.3,3258.1,3257.8,0.00511581]
[1642117405226,0.3,3258.1,3257.8,1.58763271]
[1642117405425,0.3,3258.1,3257.8,1.5825169]
[1642117405624,0.3,3258.1,3257.9,0.00454739]
[1642117406230,0.329237,3258.2,3257.9,0.00454739]
[1642117406626,0.329237,3258.2,3257.7,0.00568424]
[1642117406827,0.3,3258.2,3257.8,0.1227]
[1642117407126,1.394788,3258.4,3257.9,0.00454739]
[1642117407525,1.394788,3258.4,3258.0,0.00397896]
[1642117407726,1.44939102,3258.2,3257.8,0.00511581]
[1642117408125,1.74939102,3258.2,3257.8,1.58763271]
[1642117408325,2.04939102,3258.2,3257.8,1.58763271]
[1642117408526,2.04939102,3258.2,3257.9,0.00454739]
[1642117409776,2.04939102,3258.2,3257.8,0.00511581]
[1642117411878,2.04939102,3258.2,3257.7,0.00568424]
[1642117412529,2.81695102,3258.2,3257.7,0.00568424]
[1642117414531,2.04939102,3258.2,3257.7,0.00568424]
[1642117415130,2.04939102,3258.2,3257.8,2.63744456]
[1642117415530,2.04939102,3258.2,3257.9,0.00454739]
[1642117416590,2.04939102,3258.2,3258.0,2.63744456]
[1642117416991,2.04939102,3258.2,3258.1,0.00341054]
[1642117418896,2.17209102,3258.2,3258.1,0.00341054]
[1642117419095,0.7227,3258.2,3257.9,0.00454739]
[1642117419295,0.7227,3258.2,3257.9,2.64199195]
[1642117419694,0.7227,3258.2,3258.0,0.00397896]
[1642117420138,0.7227,3258.2,3258.0,2.64142352]
[1642117420337,0.6,3258.2,3258.0,2.64142352]
[1642117420538,0.327278,3258.3,3258.1,0.00341054]
[1642117421139,0.327278,3258.3,3258.1,2.6408551]
[1642117422239,0.327278,3258.3,3258.2,2.63744456]
[1642117422439,0.3,3258.3,3258.2,2.63744456]
[1642117441581,0.328921,3258.3,3258.2,2.63744456]
[1642117441780,0.768921,3258.3,3258.2,2.63744456]
[1642117441978,1.068921,3258.3,3258.2,2.63744456]
[1642117442629,1.068921,3258.3,3258.1,0.00341054]
[1642117442829,3.3718383,3258.3,3258.1,0.00341054]
[1642117443031,0.76765,3258.2,3257.8,0.00511581]
[1642117443231,0.76765,3258.0,3257.8,0.00511581]
[1642117443530,1.096292,3258.0,3257.7,0.00568424]
[1642117444131,1.096292,3258.0,3257.9,2.63779538]
[1642117444633,1.096292,3258.0,3257.9,2.64234277]
[1642117445635,1.06765,3258.0,3257.9,0.00454739]
[1642117446480,1.06765,3258.0,3257.9,2.64234277]
[1642117450031,0.3,3258.0,3257.9,2.64234277]
[1642117450228,2.162558,3258.3,3257.9,2.64234277]
[1642117450627,2.162558,3258.3,3258.0,0.00397896]
[1642117451235,1.53508,3258.2,3258.0,0.00397896]
[1642117451630,1.53508,3258.2,3258.1,2.63779538]
[1642117451831,0.76751,3258.2,3258.1,2.63779538]
[1642117452032,0.76751,3258.2,3258.1,2.64120592]
[1642117454086,0.76751,3258.2,3258.1,0.00341054]
[1642117454485,0.76751,3258.2,3257.7,0.00568424]
[1642117454688,0.029397,3258.1,3257.7,0.00568424]
[1642117455088,0.029397,3258.1,3257.7,2.64335003]
[1642117455487,0.029397,3258.1,3257.8,0.00511581]
[1642117456290,0.029397,3258.1,3257.7,0.00568424]
[1642117456990,0.029397,3258.1,3257.9,2.63766579]
[1642117457434,0.029397,3258.1,3258.0,0.00397896]
[1642117458129,0.029397,3258.1,3257.9,0.00454739]
[1642117458729,0.029397,3258.1,3258.0,2.63766579]
[1642117459129,0.029397,3258.1,3258.0,2.64164475]
[1642117460030,0.76751,3258.2,3258.0,2.64164475]
[1642117460433,0.76751,3258.2,3258.1,0.00341054]
[1642117460631,0.796531,3258.2,3258.1,0.00341054]
[1642117461679,0.796531,3258.2,3257.8,0.00511581]
[1642117461879,0.76763,3258.1,3257.8,0.00511581]
[1642117462079,0.3,3258.0,3257.8,0.00511581]
[1642117463480,0.3,3258.0,3257.9,2.63766579]
[1642117463879,0.3,3258.0,3257.9,2.64221318]
[1642117468033,0.6,3258.0,3257.9,2.64221318]
[1642117475536,0.6,3258.0,3257.4,0.1227]
[1642117475737,0.035871,3257.6,3257.4,0.1227]
[1642117475937,0.5627,3257.5,3257.4,0.1227]
[1642117476193,0.8627,3257.5,3257.3,1.5825169]
[1642117476390,0.033107,3257.4,3257.3,1.5825169]
[1642117476591,2.15930745,3257.4,3257.3,1.5825169]
[1642117476792,5.99576136,3257.4,3257.3,1.5825169]
[1642117476992,5.99576136,3257.4,3257.3,3.4222814]